Cogmind - Beta 15 @@@ ROGUE MODE // 2025.07.10 @ 08:01:06 Player: Flufflewump Result: Destroyed by P-80 Master with Gamma Rifle Performance ------------- Evolutions (7) 3500 Regions Visited (13) 2600 Robots Destroyed (38) 190 Value Destroyed (1332) 1332 Prototype IDs (9) 180 Alien Tech Used (0) 0 Bonus (500) 500 TOTAL SCORE: 8302 Bonus ------- Entered DSFs 500 Cogmind --------- Core Integrity 0/1300 Matter 163/300 Energy 98/100 System Corruption 12% Temperature Cool (0) Movement Core (50) Location -3/Research Parts ------- > --- POWER (2) -------- (None) > --- PROPULSION (7) --- Gyrokinetic Inverter > --- UTILITY (8) ------ (None) > --- WEAPON (4) ------- (None) > --- INVENTORY (5) ---- Seismic Detector Improved Cloaking Device Peak State ------------ > --- POWER ------------ Fission Core Micro Fission Core > --- PROPULSION ------- Enhanced Armored Leg Improved Hover Unit Nuclear Pulse Array Nuclear Pulse Array > --- UTILITY ---------- Trap Scanner Improved Sensor Array Improved Signal Interpreter Improved Signal Interpreter Advanced Signal Interpreter IFF Parser Graphene Brace > --- WEAPON ----------- KE Penetrator Railgun Mass Driver > --- INVENTORY -------- Advanced Shield Generator Improved Component Analysis Suite [Rating: 93] Favorites ----------- Power Improved Ion Engine Engine Improved Ion Engine Power Core Light Nuclear Core Reactor Light Particle Reactor Propulsion Aluminum Leg Leg Aluminum Leg Wheel Armored Wheel Hover Unit Improved Hover Unit Flight Unit Nuclear Pulse Array Utility Trap Scanner Device Trap Scanner Storage Small Storage Unit Processor Improved Signal Interpreter Hackware Hacking Suite Protection Light Armor Plating Weapon Particle Cannon Energy Gun EM Pulse Gun Energy Cannon Particle Cannon Ballistic Gun Gauss Rifle Ballistic Cannon Heavy Flak Cannon Launcher Smartbomb Launcher Special Weapon Plasma Flamer Piercing Weapon Plasma Lance Special Melee Weapon Improved Datajack Build | -11 -10 -9 -8 -7 -7 -7 -7 -7 -6 -6 -5 -4 -3 ------- Run | Yrd Mat Mat Mat Fac Was Fac Low Low Fac DSF Fac Fac Res Slots Evolved 14 | . . 2 2 2 . . . . 2 . 2 2 2 Power 1 | . . . . . . . . . 1 . . . . Propulsion 5 | . . 1 1 . . . . . . . 1 1 1 Utility 6 | . . 1 1 1 . . . . 1 . 1 1 . Weapon 2 | . . . . 1 . . . . . . . . 1 Parts Attached 94 | . 4 12 14 . . 17 6 3 1 2 9 8 18 Power 10 | . 1 1 2 . . 1 1 . . . 1 1 2 Engine 4 | . 1 1 . . . 1 . . . . . . 1 Core 5 | . . . 2 . . . 1 . . . 1 1 . Reactor 1 | . . . . . . . . . . . . . 1 Propulsion 33 | . . 3 6 . . 7 2 . 1 2 1 2 9 Treads . | . . . . . . . . . . . . . . Leg 16 | . . 3 4 . . 7 . . . . 1 . 1 Wheel 5 | . . . 2 . . . 2 . . . . . 1 Hover 4 | . . . . . . . . . . . . 2 2 Flight 8 | . . . . . . . . . 1 2 . . 5 Utility 31 | . 1 7 3 . . 6 1 1 . . 5 2 5 Device 13 | . 1 1 1 . . 3 1 . . . 4 1 1 Storage 4 | . . 3 . . . 1 . . . . . . . Processor 7 | . . 2 1 . . . . 1 . . 1 1 1 Hackware 2 | . . . . . . 1 . . . . . . 1 Protection 5 | . . 1 1 . . 1 . . . . . . 2 Artifact . | . . . . . . . . . . . . . . Weapon 20 | . 2 1 3 . . 3 2 2 . . 2 3 2 Energy Gun 3 | . 1 . 1 . . . 1 . . . . . . Energy Cannon 5 | . 1 1 . . . 1 . 1 . . . . 1 Ballistic Gun 5 | . . . 2 . . 1 . . . . 1 1 . Ballistic Cannon 3 | . . . . . . . . 1 . . 1 1 . Launcher 1 | . . . . . . . . . . . . 1 . Special Weapon 1 | . . . . . . . 1 . . . . . . Impact Weapon . | . . . . . . . . . . . . . . Slashing Weapon . | . . . . . . . . . . . . . . Piercing Weapon 1 | . . . . . . . . . . . . . 1 Special Melee Weapon 1 | . . . . . . 1 . . . . . . . Unidentified Prototypes 5 | . . . . . . 1 1 . 1 . . . 2 Parts Lost 60 | . 1 . 15 . 1 3 8 3 . 3 . 11 15 Power 7 | . . . 2 . . 1 . 1 . . . 2 1 Propulsion 27 | . . . 9 . . 1 5 1 . . . 3 8 Utility 16 | . . . 1 . . . 1 . . 3 . 6 5 Weapon 10 | . 1 . 3 . 1 1 2 1 . . . . 1 Highest Loss Streak 13 | . 1 . 13 . 1 1 5 3 . 3 . 11 8 To Critical Strikes 2 | . . . 1 . . . . . . . . . 1 Average Backups 4 | 6 6 5 7 2 2 3 3 3 4 4 2 3 3 Power . | 1 1 1 1 . . . . . . 1 . . . Propulsion . | 4 3 . 1 . . . . . . . . . . Utility 2 | . 1 2 3 2 2 2 3 2 2 2 1 1 1 Weapon . | 1 . . . . . . . . 1 1 . 1 1 Tool/Special . | . . . . . . . . . . . . . . Unused Backups 24 | . 13 1 2 . . 1 2 . 1 . 2 . 2 Power 3 | . 2 1 . . . . . . . . . . . Propulsion 6 | . 6 . . . . . . . . . . . . Utility 9 | . 2 . 1 . . 1 2 . 1 . . . 2 Weapon 5 | . 3 . . . . . . . . . 2 . . Tool/Special 1 | . . . 1 . . . . . . . . . . Average Slot Usage (%) 63 | . 91 99 88 12 8 71 43 57 27 29 44 64 26 Engine 4 | . 14 11 3 . . 4 . . . . . . . Core 2 | . . . 4 . . . 4 5 . . 4 7 . Leg 15 | . 28 32 27 . . 28 7 . . . 2 2 . Flight 1 | . . . . . . . . . 1 7 11 7 3 Device 9 | . 5 . 6 4 3 12 12 21 13 10 10 20 . Storage 4 | . 14 10 8 . . 4 2 . . . . . . Processor 5 | . . 10 15 . . . . 6 6 6 5 13 4 Hackware 2 | . . . . . . 5 7 7 6 4 . . 2 Protection 2 | . . 10 . . . 5 . . . . . . 3 Energy Gun 3 | . 25 . . 7 3 . 1 . . . . . . Energy Cannon 4 | . 1 21 7 . . . . 4 . . . . 1 Ballistic Gun 2 | . . . 7 . . 1 5 3 . . 4 4 . Peak Build Rating 93 | 6 9 14 23 3 3 39 38 28 19 33 68 93 57 Average Rating 25 | 6 6 13 16 2 1 30 19 23 15 20 51 70 36 On Entrance 16 | 6 6 8 14 2 3 . 34 22 14 19 29 64 8 Naked Turns 81 | . . . 16 . 56 9 . . . . . . . Heaviest Build 42 | 11 18 28 28 4 4 42 34 23 3 3 26 25 17 Greatest Support 74 | 20 20 30 44 3 3 74 38 19 6 26 26 26 23 Greatest Overweight (x) 7 | . . 1 1 1 1 1 7 1 . . . 3 1 Average Overweight (x) . | . . . . . . . . . . . . . . Largest Inventory Capacity 15 | 8 8 15 10 5 5 15 15 5 5 5 5 5 5 Average Capacity 7 | 8 8 7 9 5 5 11 8 5 5 5 5 5 5 Most Carried 10 | 6 8 9 10 3 2 5 6 5 5 5 5 5 5 Average Carried 4 | 6 6 5 6 2 2 3 3 3 4 4 2 4 3 Final Capacity 15 | 8 8 10 5 5 5 15 5 5 5 5 5 5 5 Final Carried 9 | 6 8 9 3 2 2 4 4 5 4 5 3 5 2 Class Distribution -------------------- 75% | Mutant 7% | Scavenger-Mutant 7% | Scout 7% | Scavenger-Skirmisher Dominant Class ---------------- Mutant | -10/Materials Scavenger-Mutant | -9/Materials Scavenger-Skirmisher | -8/Materials Mutant | -7/Factory Mutant | -7/Waste Mutant | -7/Factory Mutant | -7/Lower Caves Mutant | -7/Lower Caves Mutant | -6/Factory Mutant | -6/DSF Mutant | -5/Factory Scout | -4/Factory Mutant | -3/Research Resources | -11 -10 -9 -8 -7 -7 -7 -7 -7 -6 -6 -5 -4 -3 ----------- Run | Yrd Mat Mat Mat Fac Was Fac Low Low Fac DSF Fac Fac Res Matter Collected 1658 | 200 80 169 250 . . 125 412 38 . 1 . 303 80 Remotely . | . . . . . . . . . . . . . . Salvage Created 1539 | . 175 276 433 . . 69 242 64 . . 33 247 . Parts 80 | . 16 17 18 . . 1 7 6 . . 3 12 . Haulers Intercepted . | . . . . . . . . . . . . . . Recyclers Shooed 1 | . . 1 . . . . . . . . . . . Parts Field Recycled . | . . . . . . . . . . . . . . Retrieved Matter . | . . . . . . . . . . . . . . Parts Self-Destructed 12 | . . . . . . . 6 6 . . . . . Prevented . | . . . . . . . . . . . . . . Kills | -11 -10 -9 -8 -7 -7 -7 -7 -7 -6 -6 -5 -4 -3 ------- Run | Yrd Mat Mat Mat Fac Was Fac Low Low Fac DSF Fac Fac Res Combat Hostiles Destroyed 31 | . 4 5 9 . . 1 6 4 . . . 2 . Guns 20 | . 4 . 8 . . 1 6 . . . . 1 . Cannons 11 | . . 5 1 . . . . 4 . . . 1 . Classes Destroyed 10 | . 4 2 3 . . 1 . . . . . . . Builder 1 | . 1 . . . . . . . . . . . . Recycler 2 | . . . 1 . . . . . . . . 1 . Operator 1 | . . 1 . . . . . . . . . . . Watcher 3 | . 2 . . . . . . . . . 1 . . Swarmer 12 | . 3 . 2 . . . 3 4 . . . . . Grunt 9 | . 1 2 3 . . . 2 . . . . 1 . Duelist 2 | . . . . . . 1 1 . . . . . . Sentry 4 | . . 3 . . . . . . . . . 1 . Specialist 3 | . . . 3 . . . . . . . . . . Hunter 1 | . . . 1 . . . . . . . . . . Best Kill Streak 3 | . 3 2 3 . . 1 3 3 . . 1 2 . Combat Bots Only 3 | . 3 2 3 . . 1 3 3 . . . 2 . Max Kills in Single Turn 1 | . 1 1 1 . . 1 1 1 . . 1 1 . Gunslinging . | . . . . . . . . . . . . . . Exploded . | . . . . . . . . . . . . . . Melee . | . . . . . . . . . . . . . . Uniques/NPCs Destroyed . | . . . . . . . . . . . . . . Combat | -11 -10 -9 -8 -7 -7 -7 -7 -7 -6 -6 -5 -4 -3 -------- Run | Yrd Mat Mat Mat Fac Was Fac Low Low Fac DSF Fac Fac Res Hostile Shots Fired 976 | . 70 46 256 . 2 93 61 41 . 17 4 153 233 Missed 386 | . 22 20 84 . . 39 15 14 . 6 2 70 114 Hits 590 | . 48 26 172 . 2 54 46 27 . 11 2 83 119 Melee 18 | . . . . . 2 4 8 . . 4 . . . Projectile 572 | . 48 26 172 . . 50 38 27 . 7 2 83 119 AOE 4 | . . . . . . . . . . 3 . 1 . Critical Strikes 24 | . . 2 5 . 1 1 2 . . 3 . 4 6 Actively Blocked 6 | . . . . . . . . . . . . 4 2 Damage Taken 9617 | . 416 343 2026 . 97 886 878 408 . 379 33 1592 2559 Core 3747 | . 98 80 517 . 97 121 345 122 . 206 21 828 1312 Absorbed by Shields . | . . . . . . . . . . . . . . Redirected to Shielding 204 | . . . . . . . . . . . . . 204 Core Remaining (%) 56 | 100 60 80 6 . . . . 2 . 75 97 28 . Volleys Fired 194 | . 64 23 40 . . 8 28 13 . . 4 14 . Largest 3 | . 2 2 2 . . 1 2 2 . . 2 3 . Hottest 136 | . 90 136 93 . . 28 98 117 . . 77 115 . Shots Fired 275 | . 84 46 52 . . 8 37 18 . . 6 24 . Gun 190 | . 84 . 40 . . 8 37 . . . 4 17 . Cannon 83 | . . 46 12 . . . . 18 . . 2 5 . Launcher 2 | . . . . . . . . . . . . 2 . Special . | . . . . . . . . . . . . . . Kinetic 108 | . . . 33 . . 8 28 11 . . 6 22 . Thermal 120 | . 39 46 19 . . . 9 7 . . . . . Explosive 2 | . . . . . . . . . . . . 2 . Electromagnetic 45 | . 45 . . . . . . . . . . . . Robot Hit Streak 10 | . 4 8 10 . . 7 6 7 . . 1 6 . Robot Miss Streak 10 | . 2 2 5 . . 1 2 9 . . 10 1 . Penetration Max . | . . . . . . . . . . . . . . Secondary Targets . | . . . . . . . . . . . . . . Shots Hit Robots 145 | . 12 23 42 . . 9 29 11 . . 2 17 . Core Hits 77 | . 8 6 27 . . 3 11 9 . . 1 12 . Critical Kills 2 | . . . . . . . 1 . . . 1 . . Critical Parts Destroyed 3 | . . . 1 . . . 1 . . . . 1 . Critical Strikes 5 | . . . 1 . . . 2 . . . 1 1 . Destroy 5 | . . . 1 . . . 2 . . . 1 1 . Melee Attacks 3 | . . . . . . 3 . . . . . . . Impact . | . . . . . . . . . . . . . . Slashing . | . . . . . . . . . . . . . . Piercing . | . . . . . . . . . . . . . . Sneak Attacks 2 | . . . . . . 2 . . . . . . . Combat Hostiles . | . . . . . . . . . . . . . . Follow-up Attacks . | . . . . . . . . . . . . . . Damage Inflicted 2809 | . 177 389 715 . . 144 634 145 . . 28 577 . Guns 1760 | . 177 . 523 . . 136 634 . . . 28 262 . Cannons 861 | . . 389 183 . . . . 145 . . . 144 . Explosions 109 | . . . . . . . . . . . . 109 . Melee . | . . . . . . . . . . . . . . Ramming 79 | . . . 9 . . 8 . . . . . 62 . Kinetic 1553 | . . . 432 . . 136 457 94 . . 28 406 . Thermal 891 | . . 389 274 . . . 177 51 . . . . . Explosive 109 | . . . . . . . . . . . . 109 . Electromagnetic 177 | . 177 . . . . . . . . . . . . Impact . | . . . . . . . . . . . . . . Slashing . | . . . . . . . . . . . . . . Piercing . | . . . . . . . . . . . . . . Highest Corruption 12 | . . . . . . 5 5 5 . 5 . 12 12 Average Corruption 5 | . . . . . . 1 5 5 . 5 . 9 6 Corruption Purged . | . . . . . . . . . . . . . . Corruption Blocked . | . . . . . . . . . . . . . . Effects 56 | . . . . . . 2 41 5 . 1 . 1 6 Message Errors 13 | . . . . . . . 12 . . . . . 1 Matter Fused 15 | . . . . . . 1 12 . . . . 1 1 Heat Flow Errors 9 | . . . . . . 1 4 2 . 1 . . 1 Energy Discharges 4 | . . . . . . . 3 1 . . . . . Parts Fused 1 | . . . . . . . 1 . . . . . . Data Loss (minor) 7 | . . . . . . . 5 . . . . . 2 Data Loss (major) 1 | . . . . . . . 1 . . . . . . Alerts 2 | . . . . . . . 2 . . . . . . Misdirections 1 | . . . . . . . . . . . . . 1 Weapon Failures 3 | . . . . . . . 1 2 . . . . . Overload Shots . | . . . . . . . . . . . . . . Overflow Damage 12 | . . 12 . . . . . . . . . . . Projectiles 12 | . . 12 . . . . . . . . . . . Explosions . | . . . . . . . . . . . . . . Melee . | . . . . . . . . . . . . . . Knockbacks 8 | . . . . . . . . 8 . . . . . Impact . | . . . . . . . . . . . . . . Kinetic 6 | . . . . . . . . 6 . . . . . Secondary 2 | . . . . . . . . 2 . . . . . Self-Inflicted Damage 30 | . . . . . . . . . . . . 30 . Shots . | . . . . . . . . . . . . . . Rammed 7 | . . . . . . . . . . . . 7 . Targets Rammed 17 | . . . 7 . . 3 . . . . . 7 . Kicked 10 | . . . 7 . . 3 . . . . . . . Crushed . | . . . . . . . . . . . . . . Highest Temperature 437 | . 342 333 135 . . 153 177 437 . 98 . 232 138 Average Temperature 97 | . 83 120 51 . . 95 49 163 . 72 . 121 72 Received Heat Transfer 1353 | . 78 123 351 . . 279 135 . . . . 192 195 Effects 1 | . . 1 . . . . . . . . . . . Matter Decay 1 | . . 1 . . . . . . . . . . . Siege Activations . | . . . . . . . . . . . . . . Martial Activations . | . . . . . . . . . . . . . . Shielding Activations . | . . . . . . . . . . . . . . Robots Disrupted . | . . . . . . . . . . . . . . Combat Hostiles . | . . . . . . . . . . . . . . Robots Corrupted . | . . . . . . . . . . . . . . Combat Hostiles . | . . . . . . . . . . . . . . Parts Fried . | . . . . . . . . . . . . . . Impact Corruptions . | . . . . . . . . . . . . . . Robots Melted . | . . . . . . . . . . . . . . Combat Hostiles . | . . . . . . . . . . . . . . Parts Melted 3 | . . 2 . . . . 1 . . . . . . Heat Transferred 1547 | . . 703 448 . . . 296 100 . . . . . Parts Sabotaged . | . . . . . . . . . . . . . . Parts Stolen . | . . . . . . . . . . . . . . Parts Stripped . | . . . . . . . . . . . . . . Power Chain Reactions . | . . . . . . . . . . . . . . Alert | -11 -10 -9 -8 -7 -7 -7 -7 -7 -6 -6 -5 -4 -3 ------- Run | Yrd Mat Mat Mat Fac Was Fac Low Low Fac DSF Fac Fac Res Maximum Alert Level 1 | . . . . . . . . . . . . . 1 Low Security (%) 98 | 100 100 100 100 100 100 100 . . 100 100 100 100 80 Level 1 1 | . . . . . . . . . . . . . 19 Level 2 . | . . . . . . . . . . . . . . Level 3 . | . . . . . . . . . . . . . . Level 4 . | . . . . . . . . . . . . . . Level 5 . | . . . . . . . . . . . . . . High Security . | . . . . . . . . . . . . . . Max Security . | . . . . . . . . . . . . . . Peak Influence 275 | . 79 113 99 71 . 39 . . 63 37 15 116 275 Initial 63 | . . 24 7 41 . . . . 63 37 3 . 55 Average 20 | . 5 30 10 28 . 4 . . 58 28 . 30 65 Influence Increases 2257 | . 124 255 305 60 . 139 500 150 . . 26 311 387 Destroy 0b10 Robot/C 620 | . 80 100 180 . . 20 120 80 . . . 40 . Destroy 0b10 Robot/NC 35 | . 15 5 5 . . . . . . . 5 5 . Destroy Leader 136 | . 14 40 30 . . 10 20 10 . . 2 10 . Successful Hack 47 | . . 5 . . . 4 . . . . . 11 27 Disable Machine 105 | . 15 45 15 . . . . . . . 15 15 . Destroy Structure 54 | . . . . . . . . . . . 4 50 . Partial Spotted 30 | . . . 15 . . . . . . . . 15 . Lose Combat Pursuer 1230 | . . 60 60 60 . 105 360 60 . . . 165 360 Influence Decreases 2006 | . 67 295 231 151 . 110 429 149 48 46 32 206 242 Entered New Map 233 | . . 33 10 50 . . 11 19 38 16 4 1 51 Time Decay 1427 | . 57 262 119 101 . 100 364 100 10 . 28 165 121 Lost Part 346 | . 10 . 102 . . 10 54 30 . 30 . 40 70 Squads Dispatched 18 | . 1 1 2 . . 2 . . . 1 . 5 6 Investigation 1 | . . . . . . . . . . . . 1 . Extermination 4 | . . . . . . 1 . . . . . 1 2 Reinforcement 13 | . 1 1 2 . . 1 . . . 1 . 3 4 Assault . | . . . . . . . . . . . . . . Garrison . | . . . . . . . . . . . . . . Intercept . | . . . . . . . . . . . . . . Searches Triggered . | . . . . . . . . . . . . . . Construction Impeded 1 | . . . . . . . . . . . . 1 . Haulers Reinforced . | . . . . . . . . . . . . . . Active Scanning Responses . | . . . . . . . . . . . . . . Cargo Convoy Interrupts . | . . . . . . . . . . . . . . Stealth | -11 -10 -9 -8 -7 -7 -7 -7 -7 -6 -6 -5 -4 -3 --------- Run | Yrd Mat Mat Mat Fac Was Fac Low Low Fac DSF Fac Fac Res Distress Signals 11 | . 1 2 4 1 . . . . . . . 2 1 Communications Jammed . | . . . . . . . . . . . . . . Distress Signals . | . . . . . . . . . . . . . . Times Spotted 178 | . 15 11 28 1 5 10 19 6 . 5 4 32 42 Peak Tracking Total 19 | . 6 4 15 6 5 5 7 4 . 4 3 19 19 Tactical Retreats 33 | . . 4 3 1 . 4 10 1 . . . 4 6 Traps | -11 -10 -9 -8 -7 -7 -7 -7 -7 -6 -6 -5 -4 -3 ------- Run | Yrd Mat Mat Mat Fac Was Fac Low Low Fac DSF Fac Fac Res Traps Triggered 6 | . . 1 1 1 . 2 . . . . . . 1 Indirectly . | . . . . . . . . . . . . . . Trap Hack Attempts 46 | . . . . . . 46 . . . . . . . Triggered 1 | . . . . . . 1 . . . . . . . Disarmed 1 | . . . . . . 1 . . . . . . . Reprogrammed 2 | . . . . . . 2 . . . . . . . Reused . | . . . . . . . . . . . . . . Traps Extracted . | . . . . . . . . . . . . . . Installed . | . . . . . . . . . . . . . . Triggered . | . . . . . . . . . . . . . . Machines | -11 -10 -9 -8 -7 -7 -7 -7 -7 -6 -6 -5 -4 -3 ---------- Run | Yrd Mat Mat Mat Fac Was Fac Low Low Fac DSF Fac Fac Res Machines Disabled 7 | . 1 3 1 . . . . . . . 1 1 . Max in Single Turn 1 | . 1 1 1 . . . . . . . 1 1 . Machines Repaired . | . . . . . . . . . . . . . . Machines Dismantled . | . . . . . . . . . . . . . . Machines Sabotaged . | . . . . . . . . . . . . . . Overloaded Fab Kills . | . . . . . . . . . . . . . . Hacking | -11 -10 -9 -8 -7 -7 -7 -7 -7 -6 -6 -5 -4 -3 --------- Run | Yrd Mat Mat Mat Fac Was Fac Low Low Fac DSF Fac Fac Res Machines Accessed 18 | . 2 3 1 1 . 2 1 1 2 . 1 3 1 Terminals 10 | . 2 2 1 . . 1 . 1 1 . . 2 . Fabricators 2 | . . . . 1 . . . . . . . . 1 Repair Stations 1 | . . . . . . . . . . . 1 . . Recycling Units 3 | . . . . . . 1 . . 1 . . 1 . Scanalyzers 1 | . . 1 . . . . . . . . . . . Garrison Access . | . . . . . . . . . . . . . . Total Hacks 33 | . 3 6 2 2 . 2 1 1 2 . 1 12 1 Successful 14 | . 1 3 . 1 . 1 1 1 1 . . 4 1 Failed 19 | . 2 3 2 1 . 1 . . 1 . 1 8 . Catastrophic 4 | . 1 . . . . 1 . . 1 . . 1 . Database Lockouts . | . . . . . . . . . . . . . . Manual 7 | . 1 1 . . . . . . . . . 5 . Terminals 21 | . 3 4 2 . . 1 . 1 1 . . 9 . Fabricators 3 | . . . . 2 . . . . . . . . 1 Repair Stations 1 | . . . . . . . . . . . 1 . . Recycling Units 5 | . . . . . . 1 . . 1 . . 3 . Scanalyzers 2 | . . 2 . . . . . . . . . . . Garrison Access . | . . . . . . . . . . . . . . Terminal Hacks 10 | . 1 2 . . . 1 1 1 1 . . 3 . Record 2 | . . . . . . . . 1 . . . 1 . Prototype ID Bank 1 | . 1 . . . . . . . . . . . . Open Door 1 | . . . . . . . 1 . . . . . . Open DSF 3 | . . . . . . 1 . . 1 . . 1 . Locate Traps 1 | . . 1 . . . . . . . . . . . Zone Layout 2 | . . 1 . . . . . . . . . 1 . Fabricator Hacks 2 | . . . . 1 . . . . . . . . 1 Network Status 1 | . . . . 1 . . . . . . . . . Build 1 | . . . . . . . . . . . . . 1 Repair Station Hacks . | . . . . . . . . . . . . . . Recycling Unit Hacks 1 | . . . . . . . . . . . . 1 . Retrieve Matter 1 | . . . . . . . . . . . . 1 . Scanalyzer 1 | . . 1 . . . . . . . . . . . Insert Component 1 | . . 1 . . . . . . . . . . . Garrison Access Hacks . | . . . . . . . . . . . . . . Unauthorized Hacks . | . . . . . . . . . . . . . . Terminals . | . . . . . . . . . . . . . . Fabricators . | . . . . . . . . . . . . . . Repair Stations . | . . . . . . . . . . . . . . Recycling Units . | . . . . . . . . . . . . . . Scanalyzers . | . . . . . . . . . . . . . . Garrison Access . | . . . . . . . . . . . . . . Data Cores Recovered . | . . . . . . . . . . . . . . Used . | . . . . . . . . . . . . . . Hacking Detections 14 | . 2 3 1 1 . 1 . . 1 . 1 3 1 Full Trace Events 1 | . . . . . . . . . . . . 1 . Feedback Events . | . . . . . . . . . . . . . . Feedback Blocked . | . . . . . . . . . . . . . . Robot Schematics Acquired . | . . . . . . . . . . . . . . Robots Built . | . . . . . . . . . . . . . . Authchips . | . . . . . . . . . . . . . . Time . | . . . . . . . . . . . . . . Total Robot Build Rating . | . . . . . . . . . . . . . . Part Schematics Acquired . | . . . . . . . . . . . . . . Parts Built 1 | . . . . . . . . . . . . . 1 Authchips . | . . . . . . . . . . . . . . Time 46 | . . . . . . . . . . . . . 46 Total Part Build Rating 9 | . . . . . . . . . . . . . 9 Parts Repaired . | . . . . . . . . . . . . . . Time . | . . . . . . . . . . . . . . Parts Recycled . | . . . . . . . . . . . . . . Recycled Matter . | . . . . . . . . . . . . . . Retrieved Matter . | . . . . . . . . . . . . . . Retrieved Components . | . . . . . . . . . . . . . . Parts Scanalyzed . | . . . . . . . . . . . . . . Part Schematics Acquired . | . . . . . . . . . . . . . . Parts Damaged . | . . . . . . . . . . . . . . Bothacking | -11 -10 -9 -8 -7 -7 -7 -7 -7 -6 -6 -5 -4 -3 ------------ Run | Yrd Mat Mat Mat Fac Was Fac Low Low Fac DSF Fac Fac Res Used RIF Installer . | . . . . . . . . . . . . . . Robots Hacked 2 | . . . . . . 2 . . . . . . . Non-combat 2 | . . . . . . 2 . . . . . . . Combat . | . . . . . . . . . . . . . . Robot Hacks Applied 2 | . . . . . . 2 . . . . . . . parse_system 1 | . . . . . . 1 . . . . . . . no_distress 1 | . . . . . . 1 . . . . . . . Relay Couplers Released . | . . . . . . . . . . . . . . Fabnet Peak Effective % . | . . . . . . . . . . . . . . Robots Rewired . | . . . . . . . . . . . . . . Allies Hacked . | . . . . . . . . . . . . . . Hacks Repelled . | . . . . . . . . . . . . . . Allies | -11 -10 -9 -8 -7 -7 -7 -7 -7 -6 -6 -5 -4 -3 -------- Run | Yrd Mat Mat Mat Fac Was Fac Low Low Fac DSF Fac Fac Res Total Allies . | . . . . . . . . . . . . . . Largest Group . | . . . . . . . . . . . . . . Highest-Rated Group . | . . . . . . . . . . . . . . Highest-Rated Ally . | . . . . . . . . . . . . . . Total Orders . | . . . . . . . . . . . . . . Ally Attacks . | . . . . . . . . . . . . . . Total Damage . | . . . . . . . . . . . . . . Kills . | . . . . . . . . . . . . . . Allies Corrupted . | . . . . . . . . . . . . . . Allies Melted . | . . . . . . . . . . . . . . Intel | -11 -10 -9 -8 -7 -7 -7 -7 -7 -6 -6 -5 -4 -3 ------- Run | Yrd Mat Mat Mat Fac Was Fac Low Low Fac DSF Fac Fac Res Active Infowar (turns) 4655 | . 376 911 659 166 60 620 782 169 . . 287 624 1 Optics 1569 | . . 911 658 . . . . . . . . . . Sensors 1458 | . . . 558 166 60 . . . . . 50 624 . IFF 709 | . . . . . . . . . . . 94 615 . Terrain 53 | . . 53 . . . . . . . . . . . Traps 2430 | . . . . . . 620 782 169 . . 287 572 . Seismic 393 | . 376 16 . . . . . . . . . . 1 ECM 30 | . . . . . . 10 20 . . . . . . Robot Analysis Total . | . . . . . . . . . . . . . . Derelict Logs Recovered 1 | . . . . . . . 1 . . . . . . Drone Launches . | . . . . . . . . . . . . . . Drone Recoveries . | . . . . . . . . . . . . . . Exploration | -11 -10 -9 -8 -7 -7 -7 -7 -7 -6 -6 -5 -4 -3 ------------- Run | Yrd Mat Mat Mat Fac Was Fac Low Low Fac DSF Fac Fac Res Turns Passed 7034 | 5 886 913 723 230 116 859 1469 213 37 66 328 657 532 Spaces Moved 6252 | 5 387 548 349 238 145 607 1686 211 72 169 399 735 701 Core 2175 | . . . 76 238 145 18 1375 63 51 1 . 110 98 Treads . | . . . . . . . . . . . . . . Legs 2015 | 5 387 548 258 . . 589 228 . . . . . . Wheels 396 | . . . 15 . . . 83 148 . . . . 150 Hover 79 | . . . . . . . . . . . . 26 53 Flight 1587 | . . . . . . . . . 21 168 399 599 400 Fastest Speed 24 | 120 120 120 50 50 50 50 50 50 35 35 37 37 24 Average Speed 78 | 120 120 120 103 73 68 119 72 77 45 35 42 60 49 Slowest Speed 400 | 120 120 190 180 100 100 125 400 100 50 50 47 200 100 Overloaded Moves . | . . . . . . . . . . . . . . Propulsion Burnouts . | . . . . . . . . . . . . . . Robots Hopped 22 | . . . . . . . . . . 2 3 1 16 Potential Cave-ins . | . . . . . . . . . . . . . . Cave-ins Triggered . | . . . . . . . . . . . . . . Exploration Rate (%) 33 | 2 47 30 39 4 75 10 98 29 3 90 8 17 22 Regions Visited 13 Branch Regions 2 Pre-discovered Areas 1 | . . . . . . . 1 . . . . . . Known Exits Taken 3 | . . . . . . . . 1 1 . 1 . . Unknown Exits Taken 7 | 1 1 1 1 . . 1 1 . . . . 1 . Scrap Searched 5 | . . . . . . . 4 1 . . . . . Spaces Dug 1 | . . . . . . . . . . . . 1 . Terrain Destroyed 53 | . . . . . . . 1 . . . 2 50 . Melee . | . . . . . . . . . . . . . . Projectile 9 | . . . . . . . 1 . . . 2 6 . AOE 44 | . . . . . . . . . . . . 44 . Terrain Rammed . | . . . . . . . . . . . . . . Walls Destroyed . | . . . . . . . . . . . . . . Machines Disabled . | . . . . . . . . . . . . . . Actions | -11 -10 -9 -8 -7 -7 -7 -7 -7 -6 -6 -5 -4 -3 --------- Run | Yrd Mat Mat Mat Fac Was Fac Low Low Fac DSF Fac Fac Res Total 8061 | 4 731 760 656 294 161 726 1896 240 75 171 550 932 865 Wait 1303 | . 249 153 223 55 17 25 152 11 . . 126 151 141 Move 6202 | 4 386 547 348 238 144 606 1685 210 71 164 392 733 674 Hop 17 | . . . . . . . . . . 2 3 1 11 Pick Up 45 | . 8 9 3 . . 7 4 . 1 2 4 5 2 Fast Attach 72 | . 3 2 10 . . 17 9 1 1 2 5 4 18 Attach 51 | . 5 9 9 1 . 5 5 2 . . 8 6 1 Detach 48 | . 7 7 8 . . 3 7 3 . . 5 5 3 Swap 4 | . . 4 . . . . . . . . . . . Drop 51 | . 9 6 8 . . 3 5 . 2 1 3 7 7 Fire 194 | . 64 23 40 . . 8 28 13 . . 4 14 . Melee 3 | . . . . . . 3 . . . . . . . Ram 6 | . . . . . . . . . . . . 6 . Kick 10 | . . . 7 . . 3 . . . . . . . Crush . | . . . . . . . . . . . . . . Escape Stasis 8 | . . . . . . . . . . . . . 8 Rewire 1 | . . . . . . . 1 . . . . . . Trap 46 | . . . . . . 46 . . . . . . . Miscellaneous . | . . . . . . . . . . . . . . Route ------- -11/Scrapyard -10/Materials (discovered 2 exits: *Mat / [*Min]) -9/Materials -8/Materials (discovered 2 exits: *Fac / *Sto) -7/Factory -7/Waste -7/Factory -7/Lower Caves -7/Lower Caves -6/Factory (discovered 2 exits: *Low / DSF) -6/DSF -5/Factory -4/Factory -3/Research History --------- Turn | Location | Event 1 | -11/Scrapyard | Discovered new exit (range 3) 6 | -11/Scrapyard | Entered Materials 322 | -10/Materials | Build established: Mutant 715 | -10/Materials | Discovered new exit (range 6) 814 | -10/Materials | Discovered new exit (range 12) 892 | -10/Materials | Entered another Materials area 892 | -9/Materials | Evolved 2 slots: Propulsion x1, Utility x1 1535 | -9/Materials | Discovered new exit (range 10) 1609 | -9/Materials | Build established: Scavenger-Mutant 1805 | -9/Materials | Entered another Materials area 1805 | -8/Materials | Evolved 2 slots: Propulsion x1, Utility x1 1806 | -8/Materials | Discovered new exit (range 9) 1922 | -8/Materials | Identified exit to Storage 2171 | -8/Materials | Build established: Scavenger-Skirmisher 2469 | -8/Materials | Core integrity fell below 50% 2490 | -8/Materials | Lost 13 parts (1p8n1u3w) 2507 | -8/Materials | Core integrity fell below 20% 2526 | -8/Materials | Discovered new exit (range 5) 2528 | -8/Materials | Entered Factory 2528 | -7/Factory | Evolved 2 slots: Utility x1, Weapon x1 2670 | -7/Factory | Build established: Mutant 2758 | -7/Factory | Sucked down chute 2758 | -7/Factory | Entered Waste 2771 | -7/Waste | Spotted C-40 Crusher 2772 | -7/Waste | Spotted C-40 Crusher 2803 | -7/Waste | Spotted C-40 Crusher 2818 | -7/Waste | Crushed by Compactor (1 part destroyed, 1 dropped) 2829 | -7/Waste | Spotted C-40 Crusher 2830 | -7/Waste | Spotted C-40 Crusher 2834 | -7/Waste | Discovered new exit (range 13) 2874 | -7/Waste | Entered Factory 2960 | -7/Factory | Discovered new exit (range 11) 3155 | -7/Factory | Identified exit to DSF 3733 | -7/Factory | Entered Lower Caves 3864 | -7/Lower Caves | Encountered a Warlord checkpoint 4096 | -7/Lower Caves | Core integrity fell below 50% 4118 | -7/Lower Caves | Lost 5 parts (3n2w) 4176 | -7/Lower Caves | Core integrity fell below 20% 4197 | -7/Lower Caves | Lost 3 parts (2n1u) 4516 | -7/Lower Caves | Attracted the attention of an 0b10 outpost 4762 | -7/Lower Caves | Learned location of Extension (-6) 4962 | -7/Lower Caves | Discovered new exit (range 6) 5202 | -7/Lower Caves | Entered another Lower Caves area 5206 | -7/Lower Caves | Discovered new exit (range 10) 5214 | -7/Lower Caves | Identified exit to Factory 5385 | -7/Lower Caves | Lost 3 parts (1p1n1w) 5415 | -7/Lower Caves | Entered Factory 5415 | -6/Factory | Evolved 2 slots: Power x1, Utility x1 5421 | -6/Factory | Discovered new exit (range 6) 5423 | -6/Factory | Identified exit to Lower Caves 5452 | -6/Factory | Identified exit to DSF 5452 | -6/Factory | Entered DSF 5489 | -6/DSF | Additional patrols routed to DSF 5512 | -6/DSF | Discovered new exit (range 15) 5517 | -6/DSF | Identified exit to Factory 5518 | -6/DSF | Entered Factory 5518 | -5/Factory | Evolved 2 slots: Propulsion x1, Utility x1 5538 | -5/Factory | Lost 3 parts (3u) 5762 | -5/Factory | Spotted B-75 Beast 5791 | -5/Factory | Discovered new exit (range 12) 5846 | -5/Factory | Identified exit to Factory 5846 | -5/Factory | Entered another Factory area 5846 | -4/Factory | Evolved 2 slots: Propulsion x1, Utility x1 6437 | -4/Factory | System corruption reached 10% 6492 | -4/Factory | Core integrity fell below 50% 6494 | -4/Factory | Discovered new exit (range 16) 6503 | -4/Factory | Entered Research 6503 | -3/Research | Evolved 2 slots: Propulsion x1, Weapon x1 6533 | -3/Research | Lost 11 parts (2p3n6u) 6847 | -3/Research | Spotted B-86 Titan 6888 | -3/Research | Lost 8 parts (2n5u1w) 6920 | -3/Research | Fabricated Biometal Heavy Treads? 6975 | -3/Research | Core integrity fell below 50% 6992 | -3/Research | System corruption reached 10% 7016 | -3/Research | Core integrity fell below 20% 7035 | -3/Research | Destroyed by P-80 Master with Gamma Rifle Last Messages --------------- 06970_ Acquired Imp. Thunder Leg. 06974_ W-44 Eye sends out distress signal. 06974_ Slug penetrates Wall. 06974_ Penetrated by Slug. 06979_ ALERT: Hostiles spotted, dispatching reinforcements to Terminal R005. 06984_ Door malfunctions. 06991_ Imp. Gyrokinetic Inverter destroyed. 06996_ Imp. Thunder Leg destroyed. 06996_ Penetrated by Slug. 06996_ Slug penetrates A-15 Conveyor. 06996_ Slug penetrates H-77 Assassin. 06996_ Slug penetrates Wall. 07003_ K-01 Serf destroyed. 07003_ Faulty Diametric Drive destroyed. 07004_ Acquired Lgt. Ion Engine. 07006_ Diametric Drive destroyed. 07006_ Electron Diverter destroyed. 07012_ Lgt. Ion Engine destroyed. 07016_ System corrupted: Component data lost. Map ----- +----------------------------------------------------+ | | | | | | | | | | | | | | | | | | | | | | | | | ????########?????????????????????????????? | | ????# !#?????????????????????????????? | | ????# #?????????????????????????????? | | ????# ! #?????????????????????????????? | | ????# [ ]#########?????????????????????? | | ????# ## / ! !#?????????????????????? | | ????# ! !## #???????????##########? | | ########+#### #???????????# #? | | + = / [#??????###### #? | | # #?####?# #! """ #? | | # ] #?#T"#?# # """ #? | | ""G"" ########## "### # """ #? | | " " #??????# + """ #? | | " " #??????# @ # """ #? | | #??????# p # #? | | ##+######## pp # #? | | # ! # p#################? | | + !# # #???????? | | ###### """" # # / #???????? | | #????? ""S"" + + #???????? | | #?????? "" "" # # #???????? | | #?????? ?# # #???????? | | #?????? ] ?# #? ! #???????? | | #????? ] ?# #? #???????? | | #?????########## #?? #???????? | | #??????? # #?? #???????? | | ##???????? # #???######???????? | | T#???????? # #????????????????? | | #????????? # ##############???? | | ##????????? # # #???? | | #??????????? * ?# # ! #???? | | #??????????? ?# # ""????? | | #############+### # ""#???? | | # ""????? | | # """" ???????? | | % ^ + """" ???????? | | ^ # """"????????? | | #############! # """"????????? | +----------------------------------------------------+ Best States ------------- Heat Dissipation 46 Energy Generation 28 Energy Capacity 360 Matter Stores 300 Matter Capacity 300 Sight Range 18 Robot Scan Range 15 Terrain Scan Range 14 Terrain Scan Density 10 ECM Strength 2 Additional Mass Support 9 Armor Coverage 225 Core Shielding 30 Evasion (%) 64 Targeting Accuracy 8 Kinecelleration 30 Offensive Hacking 10 Item Schematics ----------------- None Robot Schematics ------------------ None Fabricated ------------ Biometal Heavy Treads | x1 | -3/Research | Preloaded Repaired ---------- Nothing Alien Tech Used ----------------- None Achievements -------------- Can't Catch Me Challenges ------------ None Game ------ Seed FieldSegregatorAccelerator Manual? 0 Play Time 02:03:49 Cumulative 21.9 hours Start 2025.07.09 @ 14:37:26 End 2025.07.10 @ 08:01:06 Sessions 1 Manual Loads 0 Difficulty Rogue Special Mode None Game No. 22 Rogue 22 Adventurer 0 Explorer 0 Win Type - Total 0 Types 0/0/0/0/0/0/0/0/0/0 Lore% 20 Gallery% 27 Achievement% 27 Wizard Run 0 Options --------- Layout 0 ASCII 1 Keyboard 1 Movement Vi Keybinds 1 Fullscreen 1 Font 18/SmallcapsGlow Map View 76x50 Zoom Use 0% Tactical HUD 1 Map Filters NONE Filters NONE Steam 1 RUN: b7d6f11a-3f36-428c-b3c8-1422f8bcb582